bitfinex/quotes_ETHUSD_20250112
["timestamp","ask_amount","ask_price","bid_price","bid_amount"]
[1736672159945,9.43196643,3240.4,3240.3,1.17e-06]
[1736672160150,9.40946643,3240.4,3240.3,1.17e-06]
[1736672160455,10.6114981,3240.4,3240.3,1.17e-06]
[1736672160755,6.47274643,3240.4,3240.3,1.17e-06]
[1736672160957,6.69174643,3240.4,3240.3,1.17e-06]
[1736672161456,6.47274643,3240.4,3240.3,1.17e-06]
[1736672161753,6.69174643,3240.4,3240.3,1.17e-06]
[1736672162261,8.85196643,3240.4,3240.3,1.17e-06]
[1736672162419,10.5557481,3240.4,3240.3,1.17e-06]
[1736672162621,9.40196643,3240.4,3240.3,1.17e-06]
[1736672162821,6.69174643,3240.4,3240.3,1.17e-06]
[1736672164258,8.85196643,3240.4,3240.3,1.17e-06]
[1736672166499,10.10746643,3240.4,3240.3,1.17e-06]
[1736672167056,9.40946643,3240.4,3240.3,0.75960117]
[1736672167558,9.40946643,3240.4,3240.3,1.17e-06]
[1736672167755,10.6114981,3240.4,3240.3,1.17e-06]
[1736672168507,11.3094981,3240.4,3240.3,1.17e-06]
[1736672171810,10.6114981,3240.4,3240.3,1.17e-06]
[1736672173674,8.63296643,3240.4,3240.3,1.17e-06]
[1736672173879,8.85196643,3240.4,3240.3,0.75960117]
[1736672175914,8.63296643,3240.4,3240.3,0.75960117]
[1736672176052,3.47274643,3240.4,3240.3,0.75960117]
[1736672187097,3.47274643,3240.4,3240.3,2.91989117]
[1736672187349,3.47274643,3240.4,3240.3,3.47605114]
[1736672187502,3.4399,3240.4,3240.3,3.47605114]
[1736672187930,3.47161203,3240.4,3240.3,3.47605114]
[1736672190721,2.25237702,3240.4,3240.3,3.50605114]
[1736672191060,1.04552092,3240.4,3240.3,3.50605114]
[1736672193823,1.04552092,3240.4,3240.3,8.53690422]
[1736672194023,1.04552092,3240.4,3240.3,8.50605114]
[1736672194246,1.04552092,3240.4,3240.3,5.55918114]
[1736672194792,1.04552092,3240.4,3240.3,3.50605114]
[1736672196861,1.04552092,3240.4,3240.3,3.53690258]
[1736672197164,1.04552092,3240.4,3240.3,5.66663258]
[1736672197360,1.04552092,3240.4,3240.3,5.63578114]
[1736672197514,1.04552092,3240.4,3240.3,3.50605114]
[1736672198007,1.04552092,3240.4,3240.3,3.47605114]
[1736672198361,1.04552092,3240.4,3240.3,1.31576114]
[1736672198539,1.04552092,3240.4,3240.3,0.75960117]
[1736672199567,1.04552092,3240.4,3240.3,2.91989117]
[1736672199908,1.04552092,3240.4,3240.3,2.96574686]
[1736672200949,1.04552092,3240.4,3240.3,2.96574558]
[1736672202574,1.04552092,3240.4,3240.3,2.93489117]
[1736672202876,1.04552092,3240.4,3240.3,3.48946532]
[1736672203738,1.04552092,3240.4,3240.3,3.47446532]
[1736672204142,1.04552092,3240.4,3240.3,1.31417532]
[1736672204325,1.04552092,3240.4,3240.3,0.75960117]
[1736672204528,1.07654106,3240.4,3240.3,0.75960117]
[1736672204744,1.07654106,3240.4,3240.3,1.17e-06]
[1736672205524,1.04552092,3240.4,3240.3,1.17e-06]
[1736672205723,1.07654106,3240.4,3240.3,1.17e-06]
[1736672206468,1.07654106,3240.4,3240.3,0.80260117]
[1736672206822,1.07654106,3240.4,3240.3,1.10198813]
[1736672207268,1.04552092,3240.4,3240.3,1.10198813]
[1736672209900,1.04552092,3240.4,3240.3,1.17e-06]
[1736672210479,1.07623288,3240.4,3240.3,1.17e-06]
[1736672211882,1.04552092,3240.4,3240.3,1.17e-06]
[1736672215467,1.07623288,3240.4,3240.3,1.17e-06]
[1736672218898,1.07623288,3240.4,3240.3,2.16029117]
[1736672219550,1.07623288,3240.4,3240.3,1.17e-06]
[1736672220567,1.07623288,3240.4,3240.3,0.21912016]
[1736672222404,1.07623288,3240.4,3240.3,3.15001016]
[1736672222699,1.04552092,3240.4,3240.3,3.18086821]
[1736672222900,1.04552092,3240.4,3240.3,3.15001016]
[1736672223454,1.04552092,3240.4,3240.3,3.16501016]
[1736672223910,1.04552092,3240.4,3240.3,3.21086551]
[1736672224056,1.04552092,3240.4,3240.3,3.18001016]
[1736672224257,1.04552092,3240.4,3240.3,8.18001016]
[1736672224457,1.04552092,3240.4,3240.3,6.26639016]
[1736672224659,1.04552092,3240.4,3240.3,6.27204763]
[1736672225157,1.04552092,3240.4,3240.3,9.27204763]
[1736672227451,0.33234088,3240.4,3240.3,9.82204763]
[1736672227658,0.7985,3242.6,3240.6,0.838]
[1736672227856,0.7985,3242.4,3241.2,0.808]
[1736672228057,0.03202435,3242.3,3241.4,2.15954]
[1736672228293,0.03202435,3242.3,3241.5,2.15947]
[1736672228500,0.03202435,3242.3,3241.6,0.0308446]
[1736672229493,0.03202435,3242.3,3241.5,2.15947]
[1736672229706,0.03202435,3242.3,3241.5,0.215947]
[1736672229909,0.03202435,3242.3,3241.6,2.19025391]
[1736672230128,0.03202435,3242.3,3241.7,2.9673]
[1736672230277,0.03202435,3242.3,3241.8,0.03084336]
[1736672230478,0.03202435,3242.3,3241.7,5.57819029]
[1736672231094,0.03202435,3242.3,3241.8,2.15928]
[1736672232884,0.03202435,3242.3,3241.9,0.0308406]
[1736672233320,0.03202435,3242.3,3241.8,2.15928]
[1736672233629,0.03202435,3242.3,3241.9,0.55781303]
[1736672233850,0.03202435,3242.3,3242.0,0.03084059]
[1736672236689,0.03202435,3242.3,3241.9,0.55781303]
[1736672239028,0.03202435,3242.3,3242.0,0.03084061]
[1736672240497,0.7539,3242.7,3242.0,0.03084061]
[1736672240726,0.03225323,3242.6,3242.0,0.30563397]
[1736672244516,0.03225323,3242.6,3242.0,2.46478397]
[1736672245223,0.03225323,3242.6,3242.0,5.07563426]
[1736672245970,0.03225323,3242.6,3242.0,2.91648426]
[1736672246327,0.7539,3242.7,3242.0,2.91648426]
[1736672246526,0.03233824,3242.5,3242.0,2.91648426]
[1736672246839,0.7539,3242.7,3242.1,0.50756943]
[1736672246840,0.03231315,3242.4,3242.1,0.50756943]
[1736672247036,0.7539,3242.7,3242.1,0.50756943]
[1736672247240,0.03236332,3242.6,3242.1,0.50756943]
[1736672247478,0.7539,3242.7,3242.1,0.50756943]
[1736672247672,0.03236332,3242.6,3242.1,0.50756943]
[1736672247859,0.7539,3242.7,3242.1,0.50756943]
[1736672248054,0.03236332,3242.6,3242.1,0.50756943]
[1736672248374,0.7539,3242.7,3242.3,2.15893]
[1736672248532,0.7539,3242.7,3242.4,0.03083717]
[1736672248732,0.03236332,3242.6,3242.4,2.18972717]
[1736672248933,0.7539,3242.7,3242.4,2.18972717]
[1736672249449,0.8068,3243.2,3242.4,2.18972717]
[1736672249772,0.03248873,3243.1,3242.4,2.80137892]
[1736672250346,0.03248873,3243.1,3242.4,2.77054175]
[1736672251037,0.33928873,3243.2,3242.4,2.15889]
[1736672251237,0.03168403,3243.1,3242.4,2.15889]
[1736672252980,0.03168403,3243.1,3242.0,0.7851]
[1736672253287,0.03168403,3243.1,3241.4,0.7851]
[1736672253288,2.70856,3242.9,3241.4,0.7851]
[1736672253452,3.09138781,3242.9,3241.4,0.7851]
[1736672253654,0.60256748,3242.8,3241.6,0.294453]
[1736672253871,2.15882,3242.6,3241.6,0.294453]
[1736672254071,0.83897961,3242.5,3241.6,0.294453]
[1736672254478,2.15911,3242.1,3241.2,0.7851]
[1736672254675,0.83885416,3242.0,3241.2,1.40340895]
[1736672255892,0.83885416,3242.0,3241.2,0.7851]
[1736672256098,0.83885416,3242.0,3241.2,2.94478]
[1736672256880,0.83885416,3242.0,3241.3,2.19045726]
[1736672257086,0.83885416,3242.0,3241.4,0.29755573]
[1736672257658,0.83885416,3242.0,3241.4,0.328403]
[1736672258293,0.83885416,3242.0,3241.4,0.29755573]
[1736672258494,0.83885416,3242.0,3241.4,0.328403]
[1736672259062,0.83885416,3242.0,3241.4,2.487943]
[1736672259398,0.83885416,3242.0,3241.5,0.2487943]
[1736672259562,0.83885416,3242.0,3241.5,2.15947]
[1736672259899,0.83885416,3242.0,3241.1,2.78143659]
[1736672259900,0.83885416,3242.0,3241.6,2.19026527]
[1736672260397,0.83885416,3242.0,3241.6,2.15942]
[1736672260560,0.83885416,3242.0,3241.4,2.15953]
[1736672260897,0.83885416,3242.0,3241.2,2.15966]
[1736672261097,0.83885416,3242.0,3241.3,0.27813666]
[1736672262994,0.83885416,3242.0,3241.3,2.43772666]
[1736672263602,0.83885416,3242.0,3241.4,0.03084728]
[1736672264172,0.83885416,3242.0,3241.3,2.43772666]
[1736672264514,0.83885416,3242.0,3241.4,0.03084728]
[1736672264809,0.83885416,3242.0,3241.4,0.27770467]
[1736672265578,0.83885416,3242.0,3241.4,2.43724467]
[1736672266793,0.83885416,3242.0,3241.5,2.15948]
[1736672269234,0.83885416,3242.0,3241.6,0.03084535]
[1736672269535,0.03205416,3242.0,3241.7,2.15935]
[1736672269829,0.8136,3242.3,3241.8,0.21901954]
[1736672270031,0.8136,3242.3,3241.7,2.19019387]
[1736672270032,0.8136,3242.3,3241.7,2.15935]
[1736672270180,0.03107135,3242.2,3241.7,2.15935]
[1736672270382,0.03107135,3242.2,3241.5,2.92353]
[1736672272632,0.03107135,3242.2,3241.5,0.7641]
[1736672272927,0.03107135,3242.2,3241.6,2.1594]
[1736672273131,0.03107135,3242.2,3241.6,2.73752077]
[1736672276119,0.8136,3242.3,3241.6,2.73752077]
[1736672276288,0.03113649,3242.2,3241.6,2.73752077]
[1736672276692,0.03113649,3242.2,3241.6,0.57812077]
[1736672276915,0.03113649,3242.2,3241.4,2.40638739]
[1736672277237,0.8136,3242.0,3241.4,0.24685739]
[1736672277386,0.8136,3242.0,3241.2,2.15966]
[1736672277580,0.03106124,3241.9,3240.9,0.7641]
[1736672277780,0.8136,3241.8,3241.0,2.78583161]
[1736672277980,0.8136,3241.7,3241.0,0.62602161]
[1736672278177,3.003675,3241.7,3241.0,0.62602161]
[1736672278915,3.003675,3241.7,3240.8,2.15994]
[1736672279110,0.844315,3241.7,3240.9,0.292404]
[1736672280120,0.844315,3241.7,3240.9,0.92267699]
[1736672280520,2.190075,3241.7,3240.9,0.92267699]
[1736672280686,0.8136,3241.6,3240.9,0.92267699]
[1736672281034,0.03033909,3241.5,3240.9,0.92267699]
[1736672281194,0.03033909,3241.5,3241.0,0.3082617]
[1736672281823,0.03033909,3241.5,3241.1,0.03084954]
[1736672282001,0.03033909,3241.5,3240.9,2.15987]
[1736672282198,0.03033909,3241.5,3241.0,0.03084954]
[1736672282414,0.03033909,3241.5,3240.9,2.15987]
[1736672283446,0.03033909,3241.5,3240.9,2.43884723]
[1736672284053,0.03033909,3241.5,3240.9,0.27897723]
[1736672284347,0.03033909,3241.5,3240.7,2.16]
[1736672284641,0.8066,3241.4,3240.7,2.16]
[1736672284996,0.8066,3241.4,3240.4,3.38995029]
[1736672284997,0.03005986,3241.3,3240.5,2.16014]
[1736672285201,0.8066,3241.2,3240.5,2.16014]
[1736672285522,0.8066,3241.0,3240.3,1.17e-06]
[1736672285725,0.02995945,3240.9,3240.3,1.17e-06]
[1736672285925,0.02995945,3240.9,3240.3,0.50797222]
[1736672287201,0.02995945,3240.9,3240.3,2.66824222]
[1736672288421,0.02995945,3240.9,3240.3,2.63738532]
[1736672289237,0.02995945,3240.9,3240.4,2.16021]
[1736672289542,0.8066,3241.0,3240.4,2.16021]
[1736672289695,0.8066,3241.0,3240.5,0.26373253]
[1736672289913,0.02995945,3240.9,3240.4,2.16021]
[1736672291132,0.8066,3241.0,3240.4,2.16021]
[1736672291440,0.02995945,3240.9,3240.5,2.1601]
[1736672291809,0.8066,3241.0,3240.4,0.8031]
[1736672292146,0.02975208,3240.9,3240.6,2.16009]
[1736672292303,0.02975208,3240.9,3240.7,0.216009]
[1736672292739,0.02975208,3240.9,3240.7,0.24686257]
[1736672293044,0.8066,3241.2,3240.7,0.24686257]
[1736672293542,0.02980229,3241.1,3240.7,0.24686257]
[1736672293737,0.02980229,3241.1,3240.7,2.40683257]
[1736672293936,0.8066,3241.2,3240.8,0.24068326]
[1736672294152,0.02980229,3241.1,3240.8,2.15992]
[1736672294311,0.02980229,3241.1,3240.9,0.0308512]
[1736672294510,0.8066,3241.6,3241.0,2.96292]
[1736672294835,0.219,3242.0,3240.5,0.015]
[1736672294836,0.8066,3241.4,3240.5,0.015]
[1736672295037,0.8066,3241.4,3240.6,2.16009]
[1736672295210,0.02982825,3241.3,3240.7,0.217509]
[1736672295814,0.8066,3241.2,3240.7,0.217509]
[1736672295994,0.8066,3241.2,3240.4,5.57414029]
[1736672296195,0.02980229,3241.1,3240.4,5.57414029]
[1736672296432,0.02980229,3241.1,3240.4,6.19485637]
[1736672297142,0.02980229,3241.1,3240.4,4.03466637]
[1736672297343,0.02980229,3241.1,3240.5,2.16014]
[1736672297535,0.02980229,3241.1,3240.6,0.35839561]
[1736672297717,0.8066,3241.2,3240.6,0.35839561]
[1736672297919,0.02980229,3241.1,3240.6,0.35839561]
[1736672298116,0.8066,3241.2,3240.6,0.35839561]
[1736672298317,0.02980229,3241.1,3240.6,0.35839561]
[1736672298643,0.8066,3241.2,3240.7,0.25185356]
[1736672299152,0.02997384,3241.1,3240.7,0.25185356]
[1736672299313,0.8066,3241.2,3240.7,0.25185356]
[1736672299520,0.0299652,3241.1,3240.7,0.25185356]
[1736672299819,0.8066,3241.2,3240.7,0.25185356]
[1736672300121,0.0299652,3241.1,3240.8,0.53811595]
[1736672305802,0.0299652,3241.1,3240.9,0.82175237]
[1736672306159,0.7526,3241.5,3240.9,2.98162237]
[1736672306303,0.03033712,3241.4,3240.9,2.98162237]
[1736672306502,0.03033712,3241.4,3240.9,2.95077]
[1736672306820,0.03033712,3241.4,3241.0,0.34888859]
[1736672307150,0.03033712,3241.4,3241.1,0.03085042]
[1736672307929,0.7526,3241.5,3241.1,0.03085042]
[1736672308123,0.03045282,3241.4,3241.0,0.03085043]
[1736672308508,0.03045282,3241.4,3241.3,2.15962]
[1736672308707,0.7526,3241.8,3241.4,0.7909]
[1736672308955,0.7526,3242.4,3241.4,0.7909]
[1736672309170,0.02950809,3242.3,3241.5,0.03084452]
[1736672309469,0.02950809,3242.3,3241.6,2.15939]
[1736672310156,0.02950809,3242.3,3241.7,2.15935]
[1736672310544,0.7526,3242.2,3241.5,0.60385495]
[1736672310786,0.02967721,3242.1,3241.5,2.92439665]
[1736672311075,0.02967721,3242.1,3241.6,2.1594]
[1736672311879,0.02967721,3242.1,3241.7,2.15929]
[1736672312232,0.7526,3242.2,3241.7,2.15929]
[1736672312532,0.02867579,3242.1,3241.8,0.215929]
[1736672313574,0.02867579,3242.1,3241.8,2.15927]
[1736672314277,0.02867579,3242.1,3241.5,3.37577694]
[1736672314436,0.02867579,3242.1,3241.5,0.76492665]
[1736672315178,0.7526,3242.2,3241.5,0.76492665]
[1736672315336,0.7526,3242.2,3241.6,0.03084393]
[1736672315678,0.02867579,3242.1,3241.6,0.03084393]
[1736672316986,0.02867579,3242.1,3241.6,0.40546399]
[1736672317154,0.02867579,3242.1,3241.6,0.37462006]
[1736672317353,0.02867579,3242.1,3241.6,2.53403006]
[1736672318179,0.02867579,3242.1,3241.7,2.15935]
[1736672318477,0.02867579,3242.1,3241.8,2.15929]
[1736672318640,0.7526,3242.4,3241.8,2.41268101]
[1736672318839,0.02865071,3242.0,3241.8,2.41268101]
[1736672319073,0.7526,3242.4,3241.8,3.20358101]
[1736672319239,0.02862563,3241.9,3241.8,3.20358101]
[1736672319438,0.7526,3242.4,3241.8,3.20358101]
[1736672319985,0.02872594,3242.3,3241.8,3.20358101]
[1736672320141,0.02872594,3242.3,3241.9,0.3203581]
[1736672322043,0.02872594,3242.3,3241.8,0.25339101]
[1736672322241,0.02872594,3242.3,3241.6,3.35472006]
[1736672326190,0.02872594,3242.3,3241.8,2.61085029]
[1736672326483,0.85632594,3242.3,3241.9,2.64169141]
[1736672326691,0.8276,3242.3,3241.9,2.64169141]
[1736672326983,0.02874193,3242.2,3242.0,0.48009614]
[1736672327191,0.8276,3242.3,3242.0,0.48009614]
[1736672327391,0.02871685,3242.1,3242.0,0.48009614]
[1736672327573,0.8276,3242.3,3242.0,0.48009614]
[1736672327925,0.02874193,3242.2,3242.0,0.48009614]
[1736672328088,0.02874193,3242.2,3242.1,0.31217876]
[1736672328243,0.8276,3242.3,3242.1,0.31217876]
[1736672328444,0.02874193,3242.2,3242.1,0.31217876]
[1736672328743,0.8276,3242.3,3242.1,0.31217876]
[1736672328980,0.02940549,3242.2,3242.1,0.31217876]
[1736672329196,0.8276,3242.3,3242.1,0.31217876]
[1736672329404,0.02940549,3242.2,3242.1,0.31217876]
[1736672330159,0.8276,3242.3,3242.1,0.31217876]
[1736672330473,0.02940549,3242.2,3242.1,0.31217876]
[1736672330853,0.8276,3242.3,3242.1,0.31217876]
[1736672331106,0.02940549,3242.2,3242.1,0.31217876]
[1736672331488,0.8276,3242.3,3242.1,0.31217876]
[1736672331699,0.02940549,3242.2,3242.1,0.31217876]
[1736672332079,0.8276,3242.3,3242.1,0.31217876]
[1736672332411,0.02940549,3242.2,3242.1,0.31217876]
[1736672333183,0.8276,3242.3,3242.1,0.31217876]
[1736672333374,0.02940549,3242.2,3242.1,0.31217876]
[1736672333777,0.8276,3242.3,3242.1,0.31217876]
[1736672333973,0.02940549,3242.2,3242.1,0.31217876]
[1736672334181,0.8276,3242.3,3242.1,0.31217876]
[1736672334580,0.02940549,3242.2,3242.1,0.31217876]
[1736672334796,0.8276,3242.3,3242.1,0.31217876]
[1736672335178,0.02940549,3242.2,3242.1,0.31217876]
[1736672335362,0.8276,3242.3,3242.1,0.31217876]
[1736672335563,0.02940549,3242.2,3242.1,0.31217876]
[1736672335964,0.8276,3242.3,3242.1,0.31217876]
[1736672336204,0.02940549,3242.2,3242.1,0.31217876]
[1736672336807,0.8276,3242.5,3242.1,0.31217876]
[1736672337217,0.02960967,3242.4,3242.1,0.31217876]
[1736672337998,0.02960967,3242.4,3242.1,2.47125876]
[1736672339269,0.8276,3242.7,3242.1,2.47125876]
[1736672339584,0.8276,3242.7,3242.1,2.15908]
[1736672339783,0.02952597,3242.6,3242.1,2.15908]
[1736672340617,0.02952597,3242.6,3242.2,2.15901]
[1736672340817,0.02952597,3242.6,3242.3,0.03083871]
[1736672341284,0.8276,3242.9,3242.4,1.23438615]
[1736672341823,0.02957278,3242.8,3242.4,1.23438615]
[1736672342518,0.02957278,3242.8,3242.4,1.26522438]
[1736672343474,0.02957278,3242.8,3242.3,2.15893]
[1736672344070,0.02957278,3242.8,3242.4,0.03083804]
[1736672344274,0.02957278,3242.8,3242.3,2.15893]
[1736672344472,0.02957278,3242.8,3242.4,0.03083803]
[1736672344814,0.02957278,3242.8,3242.3,2.15893]
[1736672345019,0.02957278,3242.8,3242.4,0.03083803]
[1736672345172,0.02957278,3242.8,3242.3,2.15893]
[1736672345372,0.02957278,3242.8,3242.4,0.03083803]
[1736672346117,0.02957278,3242.8,3242.3,2.71815575]
[1736672350714,0.02957278,3242.8,3242.3,0.55922575]
[1736672350897,0.7522,3242.7,3242.0,0.61914721]
[1736672351429,0.02959838,3242.6,3241.8,5.54580749]
[1736672352125,0.02959838,3242.6,3241.9,0.63139947]
[1736672352534,0.02959838,3242.6,3241.8,5.54580749]
[1736672352829,0.02959838,3242.6,3241.9,0.55458075]
[1736672353732,0.02959838,3242.6,3242.0,0.0308404]
[1736672356760,0.02959838,3242.6,3242.2,2.15901]
[1736672356952,0.02959838,3242.6,3242.3,0.03083807]
[1736672357450,0.02959838,3242.6,3242.3,2.15896]
[1736672357653,0.02959838,3242.6,3242.3,2.374856]
[1736672357985,0.02959838,3242.6,3242.3,3.153856]
[1736672359425,0.02959838,3242.6,3242.3,2.374856]
[1736672359621,0.02959838,3242.6,3242.3,0.215896]
[1736672360641,0.02959838,3242.6,3242.4,0.03083672]
[1736672360825,0.02959838,3242.6,3242.4,0.27140599]
[1736672361554,0.02959838,3242.6,3242.4,0.24056927]
[1736672361913,0.7522,3242.9,3242.4,0.24056927]
[1736672362114,0.02961892,3242.8,3242.4,0.24056927]
[1736672363112,0.02961892,3242.8,3242.5,0.03083649]
[1736672363345,0.02961892,3242.8,3242.6,0.50378133]
[1736672365164,0.02961892,3242.8,3242.7,0.03083556]
[1736672365371,0.02938815,3242.8,3242.7,1.26496994]
[1736672365653,0.7584,3243.1,3242.7,1.26496994]
[1736672365861,0.02938815,3242.8,3242.7,1.26496994]
[1736672366014,0.7584,3243.1,3242.7,1.26496994]
[1736672366015,0.7584,3243.1,3242.7,1.556721]
[1736672366214,0.02943829,3243.0,3242.5,1.23413438]
[1736672369935,0.02943829,3243.0,3242.6,0.03083492]
[1736672370136,0.02943829,3243.0,3242.7,1.23413438]
[1736672371976,0.02943829,3243.0,3242.5,1.23413438]
[1736672372175,0.02943829,3243.0,3242.7,1.23413438]
[1736672376481,0.02943829,3243.0,3242.7,1.57342882]
[1736672378075,0.02943829,3243.0,3242.9,1.23413438]
[1736672379899,0.7809,3243.3,3242.9,1.23413438]
[1736672380505,0.02878781,3243.2,3242.9,1.23413438]
[1736672380857,0.7809,3243.3,3242.9,1.23413438]
[1736672381075,0.02876275,3243.1,3242.9,1.23413438]
[1736672381281,0.7809,3243.3,3242.9,1.68985626]
[1736672381500,0.02873768,3243.0,3242.9,1.68985626]
[1736672381673,0.7809,3243.3,3242.9,1.68985626]
[1736672381874,0.02873768,3243.0,3242.9,1.68985626]
[1736672382096,0.7809,3243.3,3242.9,1.68985626]
[1736672382704,0.02878781,3243.2,3242.9,1.68985626]
[1736672383074,0.7809,3243.3,3242.9,1.68985626]
[1736672383289,0.02876275,3243.1,3242.9,1.68985626]
[1736672383602,0.02873768,3243.0,3242.9,1.68985626]
[1736672383901,0.7809,3243.3,3242.9,1.68985626]
[1736672384096,0.02885018,3243.0,3242.9,1.68985626]
[1736672384301,0.7809,3243.3,3242.9,1.68985626]
[1736672384456,0.02885018,3243.0,3242.9,1.68985626]
[1736672384660,0.7809,3243.3,3242.9,1.68985626]
[1736672384860,0.02885018,3243.0,3242.9,1.68985626]
[1736672385375,0.7809,3243.3,3242.9,1.68985626]
[1736672385702,0.02890031,3243.2,3242.9,1.68985626]
[1736672386004,0.7809,3243.3,3242.9,1.68985626]
[1736672386303,0.02890031,3243.2,3242.9,1.68985626]
[1736672386714,0.7809,3243.3,3242.9,1.68985626]
[1736672387013,0.7809,3243.3,3242.9,1.23413438]
[1736672387157,0.02890031,3243.2,3242.9,1.23413438]
[1736672387356,0.7809,3243.3,3242.9,1.23413438]
[1736672387553,0.02890031,3243.2,3242.9,1.23413438]
[1736672387771,0.7809,3243.3,3242.9,1.23413438]
[1736672388010,0.02890031,3243.2,3242.9,1.23413438]
[1736672388178,0.7809,3243.3,3242.9,1.23413438]
[1736672388379,0.02890031,3243.2,3242.9,1.23413438]
[1736672388575,0.7809,3243.3,3242.9,1.23413438]
[1736672388916,0.02890031,3243.2,3242.9,1.23413438]
[1736672389203,0.7809,3243.3,3242.9,1.23413438]
[1736672389420,0.02890031,3243.2,3242.9,1.23413438]
[1736672389708,0.7809,3243.3,3242.9,1.23413438]
[1736672389905,0.02887525,3243.1,3242.9,1.23413438]
[1736672390201,0.02787985,3243.0,3242.9,1.23413438]
[1736672390409,0.7809,3243.3,3242.9,1.23413438]
[1736672390715,0.02792998,3243.2,3242.9,1.23413438]
[1736672391104,0.7809,3243.3,3242.9,1.23413438]
[1736672391272,0.02790492,3243.1,3242.9,1.23413438]
[1736672391477,0.7809,3243.3,3242.9,1.23413438]
[1736672391771,0.02787985,3243.0,3242.9,1.23413438]
[1736672391987,0.7809,3243.3,3242.9,1.23413438]
[1736672392198,0.02894061,3243.2,3242.9,1.23413438]
[1736672392514,0.7809,3243.3,3242.9,1.23413438]
[1736672392715,0.02891375,3243.1,3242.9,1.23413438]
[1736672392915,0.7809,3243.3,3242.9,1.23413438]
[1736672393085,0.02891375,3243.1,3242.9,1.23413438]
[1736672393285,0.7809,3243.3,3242.9,1.23413438]
[1736672393518,0.02891375,3243.1,3242.9,1.23413438]
[1736672393689,0.7809,3243.3,3242.9,1.23413438]
[1736672393887,0.02891375,3243.1,3242.9,1.23413438]
[1736672394365,0.7809,3243.3,3242.9,1.23413438]
[1736672394569,0.02893189,3243.2,3242.9,1.23413438]
[1736672394775,0.8153,3243.5,3242.9,1.23413438]
[1736672395014,0.03118285,3243.4,3242.9,1.23413438]
[1736672397520,0.03118285,3243.4,3242.8,2.15857]
[1736672397818,0.8153,3243.8,3243.3,1.23413438]
[1736672398000,5.31,3244.3,3243.7,1.23413438]
[1736672398198,2.15704,3245.2,3243.7,1.23413438]
[1736672398199,2.97305,3244.2,3243.7,1.23413438]
[1736672398371,3.270355,3244.2,3243.5,0.03083028]
[1736672398576,2.15776,3244.1,3243.5,1.23413438]
[1736672400175,0.8153,3244.2,3243.6,0.03082715]
[1736672400375,0.8153,3244.2,3243.7,1.23413438]
[1736672401217,1.412595,3244.2,3243.5,1.23413438]
[1736672401385,0.8153,3244.0,3243.2,0.61252346]
[1736672401586,0.8153,3243.7,3242.8,2.96291]
[1736672401823,0.8153,3243.7,3243.0,1.23413438]
[1736672401994,2.97335,3243.7,3242.8,2.03843438]
[1736672402196,2.1581,3243.6,3242.8,0.8043]
[1736672402421,0.8292,3243.5,3242.6,2.96094]
[1736672402727,0.8292,3243.3,3242.3,2.03633438]
[1736672403076,5.31,3243.2,3242.3,0.8022]
[1736672403307,1.45213438,3243.4,3242.2,1.86036967]
[1736672403308,0.8292,3243.0,3242.2,1.86036967]
[1736672403476,2.98771,3243.0,3242.2,1.86036967]
[1736672403672,2.98771,3243.0,3241.9,0.8022]
[1736672403673,0.8292,3242.7,3241.9,0.8022]
[1736672403930,0.8292,3242.7,3242.1,1.23413438]
[1736672404131,0.8292,3242.7,3241.9,1.23413438]
[1736672405415,0.8292,3242.7,3241.7,2.15933]
[1736672405631,0.8292,3242.7,3241.8,0.03084165]
[1736672405930,0.8292,3242.7,3241.8,0.59092148]
[1736672406232,0.8292,3242.7,3241.9,2.60842668]
[1736672406524,0.8292,3242.7,3242.0,0.03084167]
[1736672406679,0.8292,3242.7,3241.8,2.71934983]
[1736672406680,0.8292,3242.7,3241.8,0.56007983]
[1736672407094,7.46877,3242.6,3241.8,0.56007983]
[1736672407293,6.1392,3242.5,3241.6,2.9616]
[1736672407597,0.8292,3242.3,3241.3,6.41062668]
[1736672407944,0.8292,3242.3,3241.5,2.15948]
[1736672408148,0.8292,3242.3,3241.6,0.03084479]
[1736672408290,0.8292,3242.3,3241.3,8.57024668]
[1736672408495,0.8292,3242.3,3241.4,3.01656467]
[1736672408715,0.8292,3242.3,3241.5,2.19031556]
[1736672409011,5.31,3242.5,3241.9,2.15916]
[1736672410822,5.31,3242.5,3241.8,2.15927]
[1736672411414,5.31,3242.5,3242.0,2.15912]
[1736672411569,5.31,3242.5,3242.1,0.2498371]
[1736672411769,5.31,3242.7,3242.1,0.2498371]
[1736672412379,5.31,3242.7,3242.1,2.4089071]
[1736672412587,5.31,3242.7,3242.2,0.8022]
[1736672412901,0.8292,3243.1,3242.6,2.15875]
[1736672413067,3.8292,3243.4,3242.7,2.40534023]
[1736672413494,0.8292,3243.4,3242.7,2.40534023]
[1736672413881,0.8292,3243.4,3242.8,2.15859]
[1736672414125,0.8292,3243.4,3242.9,0.8527336]
[1736672414283,0.7983,3243.6,3243.0,2.15845]
[1736672414470,0.7983,3243.6,3243.1,0.33194873]
[1736672414668,0.7983,3243.6,3243.1,2.49034873]
[1736672414986,5.31,3243.9,3243.1,2.49034873]
[1736672414987,6.1083,3243.9,3243.2,2.15833]
[1736672415162,6.1083,3243.9,3243.3,2.18912002]
[1736672415367,6.1083,3243.9,3243.1,2.90954504]
[1736672415368,0.7983,3244.2,3243.5,0.8219]
[1736672415567,0.7983,3244.2,3243.6,0.03082533]
[1736672416068,0.7983,3244.2,3243.7,2.15801]
[1736672416487,0.7983,3244.2,3243.8,2.15794]
[1736672416816,6.1083,3244.5,3243.9,2.15788]
[1736672418354,6.1083,3244.5,3243.7,2.455951]
[1736672418652,6.1083,3244.5,3243.8,2.15794]
[1736672419453,6.1083,3244.5,3243.8,2.78791035]
[1736672419605,6.1083,3244.5,3243.9,0.30859014]
[1736672421201,6.1083,3244.5,3243.9,2.15789]
[1736672421706,6.1083,3244.5,3244.0,2.15781]
[1736672422056,5.31,3244.5,3244.1,0.7982]
[1736672422406,5.31,3244.9,3244.1,0.7982]
[1736672423209,7.46723,3244.9,3244.1,0.7982]
[1736672423416,0.7801,3244.8,3243.9,2.15787]
[1736672423616,0.7801,3244.8,3244.0,0.35860404]
[1736672426265,2.9374,3244.8,3244.0,0.35860404]
[1736672426466,2.9374,3244.8,3243.8,3.58612035]
[1736672426835,8.2474,3244.8,3243.8,3.58612035]
[1736672430891,6.0901,3244.8,3243.9,2.15788]
[1736672431188,6.0901,3244.8,3244.0,2.15782]
[1736672432647,6.0901,3244.8,3243.2,2.15836]
[1736672432648,2.60842668,3244.1,3243.2,2.15836]
[1736672432850,0.7801,3243.9,3242.9,0.7982]
[1736672433066,0.7801,3243.5,3242.6,0.7982]
[1736672433706,5.31,3244.1,3243.0,0.015]